Cogmind - Beta 16 @@@ ROGUE MODE // 2026.01.02 @ 11:12:39 Player: jam Result: Destroyed by G-47 Trooper with Particle Gun Performance ------------- Evolutions (2) 1000 Regions Visited (3) 600 Robots Destroyed (71) 355 Value Destroyed (1770) 1770 Prototype IDs (1) 20 Alien Tech Used (0) 0 Bonus (0) 0 TOTAL SCORE: 3745 Bonus ------- None Cogmind --------- Core Integrity 0/550 Matter 53/300 Energy 99/100 System Corruption 0% Temperature Cool (9) Movement Core (100) Ox1 Location -8/Materials Parts ------- > --- POWER (2) -------- (None) > --- PROPULSION (3) --- (None) > --- UTILITY (4) ------ Advanced Visual Processing Unit Improved Propulsion Shielding Improved Propulsion Shielding > --- WEAPON (2) ------- (None) > --- INVENTORY (5) ---- (None) Peak State ------------ > --- POWER ------------ Light Nuclear Core Light Nuclear Core > --- PROPULSION ------- Compact Wheel > --- UTILITY ---------- Cooling System Targeting Computer Improved Propulsion Shielding Reactive Plating > --- WEAPON ----------- Heavy Assault Rifle Assault Cannon > --- INVENTORY -------- Advanced Visual Processing Unit Light Assault Rifle Grenade Launcher Rocket Launcher [Rating: 21] Favorites ----------- Power Ion Engine Engine Ion Engine Power Core Light Nuclear Core Propulsion Aluminum Leg Treads Light Treads Leg Aluminum Leg Wheel Wheel Flight Unit Flight Unit Utility Light Armor Plating Device Improved Heat Sink Storage Small Storage Unit Processor Targeting Computer Protection Light Armor Plating Weapon Light Assault Rifle Energy Gun Heavy EM Pulse Gun Ballistic Gun Light Assault Rifle Ballistic Cannon Assault Cannon Launcher Grenade Launcher Build | -11 -10 -9 -8 ------- Run | Yrd Mat Mat Mat Slots Evolved 4 | . . 2 2 Power 1 | . . . 1 Propulsion 1 | . . 1 . Utility 2 | . . 1 1 Weapon . | . . . . Parts Attached 68 | 6 15 23 24 Power 12 | 1 4 3 4 Engine 9 | 1 4 3 1 Core 3 | . . . 3 Reactor . | . . . . Propulsion 22 | 2 3 10 7 Treads 3 | 2 . . 1 Leg 8 | . 3 3 2 Wheel 5 | . . 2 3 Hover . | . . . . Flight 6 | . . 5 1 Utility 21 | 1 4 7 9 Device 6 | . 1 2 3 Storage 3 | 1 1 . 1 Processor 3 | . 1 1 1 Hackware . | . . . . Protection 9 | . 1 4 4 Artifact . | . . . . Weapon 13 | 2 4 3 4 Energy Gun 1 | . . 1 . Energy Cannon . | . . . . Ballistic Gun 6 | 2 2 2 . Ballistic Cannon 1 | . . . 1 Launcher 5 | . 2 . 3 Special Weapon . | . . . . Impact Weapon . | . . . . Slashing Weapon . | . . . . Piercing Weapon . | . . . . Special Melee Weapon . | . . . . Unidentified Prototypes 1 | . . 1 . Parts Lost 40 | . 7 9 24 Power 7 | . 3 1 3 Propulsion 11 | . 1 2 8 Utility 11 | . . 4 7 Weapon 11 | . 3 2 6 Highest Loss Streak 7 | . 4 4 7 To Critical Strikes . | . . . . Average Backups 4 | 3 4 4 4 Power 1 | . 2 . . Propulsion . | 1 . . . Utility . | . . . . Weapon 1 | . 1 1 2 Tool/Special . | . . . . Unused Backups 2 | . 1 1 . Power 2 | . 1 1 . Propulsion . | . . . . Utility . | . . . . Weapon . | . . . . Tool/Special . | . . . . Average Slot Usage (%) 88 | . 94 89 75 Engine 10 | . 13 10 4 Core 1 | . . . 5 Treads 3 | . 6 . 1 Leg 17 | . 21 15 7 Wheel 3 | . . 5 8 Flight 1 | . . 5 . Device 10 | . 10 6 13 Storage 5 | . 8 . 1 Processor 4 | . . 10 8 Protection 7 | . 5 13 8 Ballistic Gun 19 | . 25 17 8 Launcher 1 | . 1 1 3 Peak Build Rating 21 | 6 9 12 21 Average Rating 9 | 4 8 9 14 On Entrance 6 | . 6 9 9 Avg Prop Armor Cover (%) 7 | . 11 7 7 Naked Turns . | . . . . Heaviest Build 89 | 13 89 13 32 Greatest Support 40 | 40 40 20 36 Greatest Overweight (x) 4 | 1 4 3 3 Average Overweight (x) . | . . . . Largest Inventory Capacity 25 | 8 25 5 5 Average Capacity 8 | 7 11 5 5 Most Carried 6 | 6 5 5 5 Average Carried 4 | 3 4 4 4 Final Capacity 8 | 8 5 5 5 Final Carried 5 | 4 5 5 . Class Distribution -------------------- 70% | Mutant 29% | Scavenger-Mutant Dominant Class ---------------- Mutant | -10/Materials Scavenger-Mutant | -9/Materials Scavenger-Mutant | -8/Materials Resources | -11 -10 -9 -8 ----------- Run | Yrd Mat Mat Mat Matter Collected 1574 | 68 701 345 460 Remotely . | . . . . Salvage Created 1827 | . 792 383 652 Parts 127 | . 61 31 35 Haulers Intercepted 1 | . 1 . . Recyclers Shooed 5 | . 1 3 1 Parts Field Recycled . | . . . . Retrieved Matter . | . . . . Parts Self-Destructed . | . . . . Prevented . | . . . . Parts Restored . | . . . . Kills | -11 -10 -9 -8 ------- Run | Yrd Mat Mat Mat Combat Hostiles Destroyed 47 | . 17 16 14 Guns 26 | . 13 10 3 Cannons 6 | . . . 6 AOE 15 | . 4 6 5 Classes Destroyed 11 | . 7 1 3 Worker 6 | . 4 . 2 Builder 6 | . 3 . 3 Hauler 1 | . 1 . . Recycler 2 | . . . 2 Operator 3 | . 3 . . Watcher 6 | . 3 2 1 Swarmer 14 | . 6 8 . Grunt 26 | . 11 5 10 Duelist 1 | . . . 1 Sentry 4 | . . 3 1 Hunter 2 | . . . 2 Best Kill Streak 6 | . 3 6 4 Combat Bots Only 5 | . 3 5 2 Max Kills in Single Turn 3 | . 3 3 2 Gunslinging . | . . . . Exploded 2 | . 1 2 1 Melee . | . . . . Uniques/NPCs Destroyed . | . . . . Combat | -11 -10 -9 -8 -------- Run | Yrd Mat Mat Mat Hostile Shots Fired 463 | . 123 122 218 Missed 147 | . 37 36 74 Hits 316 | . 86 86 144 Projectile 316 | . 86 86 144 Critical Strikes 7 | . 2 2 3 Actively Blocked 1 | . . . 1 Damage Taken 4435 | . 1141 933 2361 Core 889 | . 130 205 554 Absorbed by Shields . | . . . . Redirected to Shielding 131 | . . . 131 Core Remaining (%) 65 | 100 48 48 . Volleys Fired 227 | . 95 57 75 Largest 2 | . 2 2 2 Hottest 67 | . 50 65 67 Shots Fired 399 | . 155 100 144 Gun 333 | . 150 91 92 Cannon 40 | . . . 40 Launcher 26 | . 5 9 12 Special . | . . . . Kinetic 356 | . 150 74 132 Thermal . | . . . . Explosive 26 | . 5 9 12 Electromagnetic 17 | . . 17 . Robot Hit Streak 16 | . 8 9 16 Robot Miss Streak 7 | . 5 7 5 Penetration Max . | . . . . Secondary Targets 6 | . 1 4 1 Max Gunslinging Chain 1 | . 1 1 1 Shots Hit Robots 236 | . 83 59 94 Core Hits 130 | . 49 31 50 Critical Kills 1 | . 1 . . Critical Parts Destroyed . | . . . . Critical Strikes 1 | . 1 . . Destroy 1 | . 1 . . Melee Attacks . | . . . . Impact . | . . . . Slashing . | . . . . Piercing . | . . . . Sneak Attacks . | . . . . Combat Hostiles . | . . . . Follow-up Attacks . | . . . . Damage Inflicted 4556 | . 1320 946 2290 Guns 2011 | . 880 466 665 Cannons 724 | . . . 724 Explosions 1783 | . 440 462 881 Melee . | . . . . Ramming 38 | . . 18 20 Kinetic 2651 | . 880 382 1389 Thermal . | . . . . Explosive 1783 | . 440 462 881 Electromagnetic 84 | . . 84 . Impact . | . . . . Slashing . | . . . . Piercing . | . . . . Highest Corruption 3 | . . 3 . Average Corruption 3 | . . 3 . Corruption Purged . | . . . . Corruption Blocked . | . . . . Overload Shots . | . . . . Overflow Damage 96 | . 41 . 55 Projectiles 3 | . . . 3 Explosions 93 | . 41 . 52 Melee . | . . . . Knockbacks 11 | . . . 11 Impact . | . . . . Kinetic 10 | . . . 10 Secondary 1 | . . . 1 Self-Inflicted Damage 263 | . 134 7 122 Shots 5 | . 3 . 2 Rammed 4 | . . 3 1 Targets Rammed 12 | . . 4 8 Kicked 8 | . . 1 7 Crushed . | . . . . Highest Temperature 208 | . 19 208 . Average Temperature 83 | . 8 105 . Received Heat Transfer 1833 | . 465 252 1116 Siege Activations . | . . . . Martial Activations . | . . . . Shielding Activations . | . . . . Robots Disrupted . | . . . . Combat Hostiles . | . . . . Robots Corrupted . | . . . . Combat Hostiles . | . . . . Parts Fried . | . . . . Impact Corruptions . | . . . . Robots Melted . | . . . . Combat Hostiles . | . . . . Parts Melted . | . . . . Heat Transferred . | . . . . Parts Sabotaged . | . . . . Parts Stolen . | . . . . Parts Stripped . | . . . . Power Chain Reactions . | . . . . Alert | -11 -10 -9 -8 ------- Run | Yrd Mat Mat Mat Maximum Alert Level 1 | . . 1 1 Low Security (%) 81 | 100 100 52 60 Level 1 18 | . . 47 39 Level 2 . | . . . . Level 3 . | . . . . Level 4 . | . . . . Level 5 . | . . . . High Security . | . . . . Max Security . | . . . . Peak Influence 292 | . 171 256 292 Initial 84 | . . . 84 Average 110 | . 72 161 168 Influence Increases 1703 | . 578 502 623 Destroy 0b10 Robot/C 940 | . 340 320 280 Destroy 0b10 Robot/NC 120 | . 70 10 40 Destroy Leader 234 | . 88 74 72 Disable Machine 75 | . 30 15 30 Destroy Structure 154 | . 50 38 66 Partial Spotted 30 | . . . 30 Lose Combat Pursuer 150 | . . 45 105 Influence Decreases 1538 | . 578 302 658 Entered New Map 116 | . . . 116 Time Decay 1032 | . 508 222 302 Lost Part 390 | . 70 80 240 Squads Dispatched 13 | . 4 3 6 Investigation 3 | . 1 2 . Extermination . | . . . . Reinforcement 10 | . 3 1 6 Assault . | . . . . Garrison . | . . . . Intercept . | . . . . Searches Triggered . | . . . . Construction Impeded 2 | . . . 2 Haulers Reinforced . | . . . . Active Scanning Responses . | . . . . Cargo Convoy Interrupts . | . . . . Stealth | -11 -10 -9 -8 --------- Run | Yrd Mat Mat Mat Distress Signals 5 | . 1 1 3 Communications Jammed . | . . . . Distress Signals . | . . . . Times Spotted 99 | . 32 24 43 Peak Tracking Total 10 | . 4 6 10 Tactical Retreats 8 | . . 3 5 Traps | -11 -10 -9 -8 ------- Run | Yrd Mat Mat Mat Traps Triggered 3 | . 1 2 . Indirectly . | . . . . Trap Hack Attempts . | . . . . Triggered . | . . . . Disarmed 4 | . 4 . . Reprogrammed . | . . . . Reused . | . . . . Traps Extracted . | . . . . Installed . | . . . . Triggered . | . . . . Machines | -11 -10 -9 -8 ---------- Run | Yrd Mat Mat Mat Machines Disabled 5 | . 2 1 2 Max in Single Turn 1 | . 1 1 1 Machines Repaired . | . . . . Machines Dismantled . | . . . . Machines Sabotaged . | . . . . Overloaded Fab Kills . | . . . . Hacking | -11 -10 -9 -8 --------- Run | Yrd Mat Mat Mat Machines Accessed 2 | . 1 1 . Terminals 1 | . 1 . . Fabricators . | . . . . Repair Stations . | . . . . Recycling Units . | . . . . Scanalyzers 1 | . . 1 . Garrison Access . | . . . . Total Hacks 6 | . 5 1 . Successful 3 | . 3 . . Failed 3 | . 2 1 . Catastrophic . | . . . . Database Lockouts . | . . . . Manual 1 | . 1 . . Terminals 5 | . 5 . . Fabricators . | . . . . Repair Stations . | . . . . Recycling Units . | . . . . Scanalyzers 1 | . . 1 . Garrison Access . | . . . . Terminal Hacks 3 | . 3 . . Record 1 | . 1 . . Disarm Traps 1 | . 1 . . Dispatch Records 1 | . 1 . . Fabricator Hacks . | . . . . Repair Station Hacks . | . . . . Recycling Unit Hacks . | . . . . Scanalyzer . | . . . . Garrison Access Hacks . | . . . . Unauthorized Hacks . | . . . . Terminals . | . . . . Fabricators . | . . . . Repair Stations . | . . . . Recycling Units . | . . . . Scanalyzers . | . . . . Garrison Access . | . . . . Data Cores Recovered . | . . . . Used . | . . . . Hacking Detections 1 | . . 1 . Full Trace Events . | . . . . Feedback Events . | . . . . Feedback Blocked . | . . . . Robot Schematics Acquired . | . . . . Robots Built . | . . . . Authchips . | . . . . Time . | . . . . Total Robot Build Rating . | . . . . Part Schematics Acquired . | . . . . Parts Built . | . . . . Authchips . | . . . . Time . | . . . . Total Part Build Rating . | . . . . Part Studies Acquired . | . . . . Parts Repaired . | . . . . Time . | . . . . Parts Recycled . | . . . . Recycled Matter . | . . . . Retrieved Matter . | . . . . Retrieved Components . | . . . . Parts Scanalyzed . | . . . . Part Schematics Acquired . | . . . . Parts Damaged . | . . . . Bothacking | -11 -10 -9 -8 ------------ Run | Yrd Mat Mat Mat Used RIF Installer . | . . . . Robots Hacked . | . . . . Non-combat . | . . . . Combat . | . . . . Robot Hacks Applied . | . . . . Relay Couplers Released . | . . . . Fabnet Peak Effective % . | . . . . Robots Rewired . | . . . . Allies Hacked . | . . . . Hacks Repelled . | . . . . Allies | -11 -10 -9 -8 -------- Run | Yrd Mat Mat Mat Total Allies . | . . . . Largest Group . | . . . . Highest-Rated Group . | . . . . Highest-Rated Ally . | . . . . Total Orders . | . . . . Ally Attacks . | . . . . Total Damage . | . . . . Kills . | . . . . Allies Corrupted . | . . . . Allies Melted . | . . . . Intel | -11 -10 -9 -8 ------- Run | Yrd Mat Mat Mat Active Infowar (turns) 124 | . 5 . 119 Optics 119 | . . . 119 T.N.C. 5 | . 5 . . Robot Analysis Total . | . . . . Derelict Logs Recovered . | . . . . Drone Launches . | . . . . Drone Recoveries . | . . . . Exploration | -11 -10 -9 -8 ------------- Run | Yrd Mat Mat Mat Turns Passed 2932 | 69 1606 579 678 Spaces Moved 1528 | 43 809 349 327 Core 38 | 15 . . 23 Treads 260 | 28 161 . 71 Legs 951 | . 648 196 107 Wheels 197 | . . 76 121 Hover . | . . . . Flight 82 | . . 77 5 Fastest Speed 34 | 50 120 34 86 Average Speed 142 | 125 164 108 124 Slowest Speed 400 | 160 400 290 260 Overloaded Moves . | . . . . Propulsion Burnouts . | . . . . Robots Hopped . | . . . . Potential Cave-ins . | . . . . Cave-ins Triggered . | . . . . Exploration Rate (%) 39 | 4 83 35 36 Regions Visited 3 Branch Regions . Pre-discovered Areas . | . . . . Known Exits Taken . | . . . . Unknown Exits Taken 3 | 1 1 1 . Scrap Searched . | . . . . Spaces Dug . | . . . . Terrain Destroyed 184 | . 55 41 88 Melee . | . . . . Projectile 7 | . . . 7 AOE 177 | . 55 41 81 Terrain Rammed . | . . . . Walls Destroyed . | . . . . Machines Disabled . | . . . . Actions | -11 -10 -9 -8 --------- Run | Yrd Mat Mat Mat Total 1914 | 58 940 465 451 Wait . | . . . . Move 1525 | 42 808 348 327 Hop . | . . . . Pick Up 36 | 10 10 10 6 Fast Attach 30 | . 6 12 12 Attach 34 | 6 6 11 11 Detach 2 | . . 2 . Swap 20 | . 7 7 6 Drop 28 | . 8 14 6 Fire 227 | . 95 57 75 Melee . | . . . . Ram 3 | . . 3 . Kick 8 | . . 1 7 Crush 1 | . . . 1 Escape Stasis . | . . . . Rewire . | . . . . Trap . | . . . . Miscellaneous . | . . . . Route ------- -11/Scrapyard -10/Materials (discovered 3 exits: *Mat x2 / [*Min]) -9/Materials -8/Materials History --------- Turn | Location | Event 7 | -11/Scrapyard | Discovered new exit (range 14) 70 | -11/Scrapyard | Entered Materials 301 | -10/Materials | Discovered new exit (range 8) 318 | -10/Materials | Build established: Mutant 475 | -10/Materials | Lost 4 parts (2p1n1w) 660 | -10/Materials | Discovered new exit (range 8) 859 | -10/Materials | Core integrity fell below 50% 956 | -10/Materials | Discovered new exit (range 16) 1676 | -10/Materials | Entered another Materials area 1676 | -9/Materials | Evolved 2 slots: Propulsion x1, Utility x1 1915 | -9/Materials | Lost 4 parts (1p2u1w) 2093 | -9/Materials | Core integrity fell below 50% 2126 | -9/Materials | Lost 3 parts (2u1w) 2127 | -9/Materials | Discovered new exit (range 11) 2255 | -9/Materials | Entered another Materials area 2255 | -8/Materials | Evolved 2 slots: Power x1, Utility x1 2523 | -8/Materials | Build established: Scavenger-Mutant 2571 | -8/Materials | Lost 5 parts (3n1u1w) 2806 | -8/Materials | Lost 6 parts (1p3u2w) 2870 | -8/Materials | Lost 3 parts (1n1u1w) 2900 | -8/Materials | Core integrity fell below 50% 2916 | -8/Materials | Core integrity fell below 20% 2933 | -8/Materials | Destroyed by G-47 Trooper with Particle Gun Last Messages --------------- 02899_ Com. Wheel destroyed. 02900_ U-05 Engineer lays Concrete. 02901_ Adv. Treads destroyed. 02901_ U-05 Engineer lays Concrete. 02904_ The unstable cave ceiling collapses. 02904_ U-05 Engineer lays Concrete. 02906_ Acquired Imp. Propulsion Shielding. 02906_ U-05 Engineer lays Concrete. 02909_ Acquired Imp. Propulsion Shielding. 02910_ U-05 Engineer lays Concrete. 02910_ Aluminum Leg destroyed. 02910_ Lgt. Deuterium Engine destroyed. 02911_ U-05 Engineer lays Concrete. 02912_ U-05 Engineer builds a Wall. 02912_ U-05 Engineer lays Concrete. 02917_ Acquired 5 matter. 02926_ Terminal unresponsive. 02929_ Imp. Heat Sink destroyed. 02929_ Terminal disabled. 02932_ K-01 Serf collects debris. Map ----- +----------------------------------------------------+ | #???????????# #?????? %#####%#??# | | = #???????????# #?????# #???#%#### | | #####???????????# #?????# #???# + | | ????????????????# ####???# #???#### #######+#### | | ????????????????# # ##### #??????# ##### | | ????????????????# ########+#??????# ^ | | ????????????????# # ##?????# " | | ????????????????# # ##?????# ^ T | | ????????????????# # #####??# " | | ################# #=! # #??# ^ | | %"!/ % ##### ^ ^ | | # !! ! *% ^ | | ??? """ !!! #!= !%# ####### " | | ??? """ !!! #=! #?????# ! " | | """ !! # #####?????# *%|" | | ! ####### ##??########+## | | g#??????##???# !|! # | | """ """ """ g#########???# !|! # = | | """ """ """ ga #???# !| #### %# | | ??? """ """ """ g !#???# #??## = | | ?? " #???################## | | ?? kT #???????????# """" | | ???? """ #???????????# """" | | ?????""" #???????????# """" | | ?????"""r /* ! #???????????# | | ??? [* ]]@ #???????????# / | | ??? [ g ]] #???????????# | | ????############ g ][ #???????????# | | ???????????? ??????????# | | ????????# ?????????########## | | ????????+ g ????????????????? | | ????????# ???????????????? | | ????????# ###+###??????????????? | | ????????# #############+###????????????????????? | | ????????# ?????????????????????????????????????? | | ????????# ??????????????????????????????????????? | | ????????# ???????????????????????????????????????? | | ?????????????????????????????????????????????????? | | ?????????????????????????????????????????????????? | | ?????????????????????????????????????????????????? | | ?????????????????????????????????????????????????? | | ?????????????????????????????????????????????????? | | ?????????????????????????????????????????????????? | | ?????????????????????????????????????????????????? | | ?????????????????????????????????????????????????? | | ?????????????????????????????????????????????????? | | ?????????????????????????????????????????????????? | | ?????????????????????????????????????????????????? | | ?????????????????????????????????????????????????? | | ?????????????????????????????????????????????????? | +----------------------------------------------------+ Best States ------------- Heat Dissipation 63 Energy Generation 23 Energy Capacity 310 Matter Stores 300 Matter Capacity 300 Sight Range 20 Terrain Scan Density 10 Base Temperature (-) 100 Armor Coverage 300 Resistance: KI 20 Propulsion Shielding 66 Utility Shielding 33 Evasion (%) 63 Targeting Accuracy 5 Recoil Reduction 2 Item Schematics ----------------- None Robot Schematics ------------------ None Fabricated ------------ Nothing Repaired ---------- Nothing Studied --------- None Alien Tech Used ----------------- None Achievements -------------- Hey, That's Mine! Hydra Let's See Who's Tougher That Tickles Challenges ------------ None Game ------ Seed ComponentRelayTrident Manual? 0 Play Time 00:33:03 Cumulative 5.7 hours Start 2026.01.02 @ 10:42:20 End 2026.01.02 @ 11:12:39 Sessions 1 Manual Loads 0 Difficulty Rogue Special Mode None Game No. 12 Rogue 9 Adventurer 3 Explorer 0 Win Type - Total 0 Types 0/0/0/0/0/0/0/0/0/0 Lore% 3 Gallery% 11 Achievement% 10 Wizard Run 0 Options --------- Layout 1 ASCII 0 Keyboard 0 Movement Mouse Keybinds 0 Fullscreen 1 Font 20/SmallcapsGlow Map View 55x45 Zoom Use 0% Tactical HUD 1 Map Filters NONE Filters NONE Steam 1 RUN: 13cd4e70-2d26-4b32-a418-6e18e38f790e